fUST/lending_fUST_20240714
["ID","MTS","AMOUNT","RATE_DAILY","PERIOD"]
[331967342,1720907452353,-797.2,0.00026849,2]
[331967343,1720907452366,-169.39,0.00026849,2]
[331967344,1720907452381,-2111.15,0.00026849,2]
[331967345,1720907452398,-212.44,0.00026849,2]
[331967346,1720907452414,-500.0,0.00026849,2]
[331967347,1720907452431,-500.0,0.00026849,2]
[331967348,1720907452447,-500.0,0.00026849,2]
[331967349,1720907452461,-630.04,0.00026849,2]
[331967350,1720907452474,-500.0,0.00026849,2]
[331967351,1720907452489,-311.61812318,0.00026849,2]
[331967352,1720907452506,-519.05,0.00026849,2]
[331967353,1720907452522,-11876.26486593,0.00026849,2]
[331967354,1720907489328,154.57491897,0.000189,2]
[331967363,1720907530229,273.37336231,9.9e-05,2]
[331967366,1720907554087,234.85795018,0.00012,7]
[331967367,1720907554116,125.77013148,0.00012,7]
[331967369,1720907582053,293.96397392,0.00012,2]
[331967413,1720908117772,-2135.60833403,0.00016255,2]
[331967414,1720908147241,1309.63218535,0.00014545,2]
[331967415,1720908148633,525.73842429,0.00014545,2]
[331967419,1720908335151,-154.57491897,0.00016255,2]
[331967420,1720908335174,-1321.03329452,0.00016255,2]
[331967421,1720908397531,457.79285718,0.00014999,2]
[331967423,1720908432111,-300.0,0.00016254,2]
[331967424,1720908432137,-300.0,0.00016254,2]
[331967425,1720908432160,-4153.18905268,0.00016255,2]
[331967426,1720908451110,-5658.52234734,0.00016255,2]
[331967427,1720908452082,-176.0529178,0.00016255,2]
[331967428,1720908453214,790.65319772,0.00014999,2]
[331967429,1720908545104,-1263.97985914,0.00016255,2]
[331967430,1720908545125,-246.06893768,0.00016255,2]
[331967431,1720908545146,-191.27347695,0.00018,2]
[331967432,1720908545166,-1021.0865807,0.0001832,2]
[331967433,1720908545187,-197.44371632,0.00019039,2]
[331967434,1720908545208,-250.0,0.00019041,2]
[331967435,1720908545229,-1496.69229355,0.00019164,2]
[331967436,1720908545249,-300.0,0.00019753,2]
[331967437,1720908545270,-500.0,0.00019754,2]
[331967438,1720908545291,-500.0,0.00019754,2]
[331967439,1720908545313,-500.0,0.00019754,2]
[331967440,1720908545334,-500.0,0.00019754,2]
[331967441,1720908545364,-500.0,0.00019754,2]
[331967442,1720908545394,-500.0,0.00019754,2]
[331967443,1720908545417,-200.0,0.00019754,2]
[331967444,1720908545445,-500.0,0.00019754,2]
[331967445,1720908545467,-597.82674173,0.00019754,2]
[331967446,1720908545490,-565.02347996,0.00019754,2]
[331967447,1720908545512,-308.82387261,0.00019754,2]
[331967448,1720908545535,-500.0,0.00019754,2]
[331967449,1720908545559,-500.0,0.00019754,2]
[331967450,1720908545580,-500.0,0.00019754,2]
[331967451,1720908545602,-500.0,0.00019754,2]
[331967452,1720908545629,-500.0,0.00019754,2]
[331967453,1720908545653,-500.0,0.00019754,2]
[331967454,1720908545675,-500.0,0.00019754,2]
[331967455,1720908545699,-24900.0,0.00019755,2]
[331967456,1720908545721,-1582.86082479,0.000199,2]
[331967457,1720908545742,-435.0,0.0002,2]
[331967458,1720908545763,-154.57491897,0.0002,2]
[331967459,1720908545784,-246.9229296,0.0002,2]
[331967460,1720908545807,-293.58203646,0.0002,2]
[331967461,1720908545831,-239.3579425,0.0002,2]
[331967462,1720908545853,-162.047987,0.00020052,2]
[331967463,1720908545875,-189.532975,0.0002022,2]
[331967464,1720908545897,-166.207179,0.00020256,2]
[331967465,1720908545921,-166.207179,0.00020337,2]
[331967466,1720908545947,-3000.0,0.00020371,2]
[331967467,1720908545969,-166.207179,0.00020418,2]
[331967468,1720908545992,-166.207179,0.000205,2]
[331967469,1720908546013,-166.207179,0.00020581,2]
[331967470,1720908546035,-166.207179,0.00020662,2]
[331967471,1720908546056,-98.36431613,0.00020743,2]
[331967472,1720908562140,-67.84286287,0.00020743,2]
[331967473,1720908562160,-166.207179,0.00020824,2]
[331967474,1720908562182,-166.207179,0.00020906,2]
[331967475,1720908562203,-166.207179,0.00020987,2]
[331967476,1720908562224,-166.207179,0.00021068,2]
[331967477,1720908562247,-591.180757,0.00021096,2]
[331967478,1720908562270,-166.207179,0.00021149,2]
[331967479,1720908562291,-166.207179,0.0002123,2]
[331967480,1720908562313,-166.207179,0.00021312,2]
[331967482,1720908566095,-287.0,0.00021729,2]
[331967483,1720908566117,-1066.36077455,0.00021917,2]
[331967484,1720908566139,-166.666666,0.00021918,2]
[331967485,1720908566160,-1041.66200346,0.00022012,2]
[331967486,1720908566182,-13813.15584569,0.00022022,2]
[331967488,1720908572121,-2673.9640703,0.00022022,2]
[331967503,1720908606954,3571.08822136,0.00019922,2]
[331967531,1720908632011,-586.23740997,0.000227,2]
[331967532,1720908632023,-510.30323151,0.000227,2]
[331967549,1720908638137,-300.0,0.00022699,2]
[331967550,1720908638147,-256.53598585,0.00022699,2]
[331967551,1720908638157,-97903.45935852,0.000227,2]
[331967552,1720908638167,-189.5329755,0.00023198,2]
[331967553,1720908638177,-166.666666,0.000232,2]
[331967555,1720908638187,-203.57,0.00023443,3]
[331967557,1720908638196,-3077.67417499,0.00023453,2]
[331967558,1720908638206,-441.04727659,0.00023455,2]
[331967561,1720908638216,-166.666666,0.00024482,2]
[331967562,1720908638226,-2000.0,0.00024557,2]
[331967563,1720908638235,-878.33419801,0.00024557,3]
[331967564,1720908638244,-1970.01766675,0.00024557,2]
[331967565,1720908638255,-1970.01766672,0.00024626,2]
[331967566,1720908638265,-198.16018033,0.00024646,2]
[331967567,1720908638274,-371.28614642,0.00024646,2]
[331967568,1720908638284,-199.62486119,0.00024646,2]
[331967569,1720908638294,-37758.8660918,0.00024647,3]
[331967570,1720908638304,-500.0,0.00024657,2]
[331967571,1720908638314,-500.0,0.00024657,2]
[331967572,1720908638323,-501.89231699,0.00024657,2]
[331967573,1720908638333,-500.0,0.00024657,2]
[331967574,1720908638343,-500.0,0.00024657,2]
[331967575,1720908638353,-500.0,0.00024657,2]
[331967576,1720908638363,-500.0,0.00024657,2]
[331967577,1720908638373,-500.0,0.00024657,2]
[331967578,1720908638382,-502.05468494,0.00024657,2]
[331967579,1720908638392,-542.81994659,0.00024657,2]
[331967580,1720908638402,-500.0,0.00024657,2]
[331967581,1720908638413,-500.0,0.00024657,2]
[331967582,1720908638422,-500.0,0.00024657,2]
[331967583,1720908638432,-500.0,0.00024657,2]
[331967584,1720908638441,-516.54184523,0.00024657,2]
[331967585,1720908638451,-500.0,0.00024657,2]
[331967586,1720908638460,-500.0,0.00024657,2]
[331967587,1720908638470,-500.0,0.00024657,2]
[331967588,1720908638480,-500.0,0.00024657,2]
[331967589,1720908638491,-500.0,0.00024657,2]
[331967590,1720908638502,-500.0,0.00024657,2]
[331967591,1720908638512,-500.0,0.00024657,2]
[331967592,1720908638521,-500.0,0.00024657,2]
[331967593,1720908638531,-500.0,0.00024657,2]
[331967594,1720908638540,-500.0,0.00024657,2]
[331967595,1720908638550,-500.0,0.00024657,2]
[331967596,1720908638560,-500.0,0.00024657,2]
[331967597,1720908638569,-500.0,0.00024657,2]
[331967598,1720908638579,-505.06363925,0.00024657,2]
[331967599,1720908638589,-500.0,0.00024657,2]
[331967600,1720908638598,-500.0,0.00024657,2]
[331967601,1720908638608,-500.0,0.00024657,2]
[331967602,1720908638618,-500.0,0.00024657,2]
[331967603,1720908638627,-500.0,0.00024657,2]
[331967604,1720908638637,-521.79621132,0.00024657,2]
[331967605,1720908638651,-500.0,0.00024657,2]
[331967606,1720908638661,-509.82155362,0.00024657,2]
[331967607,1720908638671,-500.0,0.00024657,2]
[331967608,1720908638681,-500.0,0.00024657,2]
[331967609,1720908638691,-500.0,0.00024657,2]
[331967610,1720908638700,-500.0,0.00024657,2]
[331967611,1720908638710,-500.0,0.00024657,2]
[331967612,1720908638721,-508.68677257,0.00024657,2]
[331967613,1720908638731,-500.0,0.00024657,2]
[331967614,1720908638740,-500.0,0.00024657,2]
[331967615,1720908638751,-500.0,0.00024657,2]
[331967616,1720908638761,-512.4038364,0.00024657,2]
[331967617,1720908638771,-500.0,0.00024657,2]
[331967618,1720908638780,-500.0,0.00024657,2]
[331967619,1720908638789,-513.98123611,0.00024657,2]
[331967620,1720908638799,-500.0,0.00024657,2]
[331967621,1720908638809,-500.0,0.00024657,2]
[331967622,1720908638818,-500.0,0.00024657,2]
[331967623,1720908638828,-500.0,0.00024657,2]
[331967624,1720908638838,-330.30103395,0.00024657,2]
[331967625,1720908638847,-500.0,0.00024657,2]
[331967626,1720908638857,-500.0,0.00024657,2]
[331967627,1720908638867,-500.0,0.00024657,2]
[331967628,1720908638876,-500.0,0.00024657,2]
[331967629,1720908638885,-268.37441196,0.00024657,2]
[331967630,1720908638896,-500.0,0.00024657,2]
[331967631,1720908638907,-500.0,0.00024657,2]
[331967632,1720908638917,-500.0,0.00024657,2]
[331967633,1720908638926,-500.0,0.00024657,2]
[331967634,1720908638935,-500.0,0.00024657,2]
[331967635,1720908638945,-500.0,0.00024657,2]
[331967636,1720908638955,-500.0,0.00024657,2]
[331967637,1720908638965,-500.0,0.00024657,2]
[331967638,1720908638974,-500.0,0.00024657,2]
[331967639,1720908638984,-500.0,0.00024657,2]
[331967640,1720908638995,-500.0,0.00024657,2]
[331967641,1720908639005,-500.0,0.00024657,2]
[331967642,1720908639014,-500.0,0.00024657,2]
[331967643,1720908639025,-500.0,0.00024657,2]
[331967644,1720908639034,-504.62117378,0.00024657,2]
[331967645,1720908639044,-505.17686854,0.00024657,2]
[331967646,1720908639053,-500.0,0.00024657,2]
[331967647,1720908639063,-500.0,0.00024657,2]
[331967648,1720908639072,-500.0,0.00024657,2]
[331967649,1720908639083,-500.0,0.00024657,2]
[331967650,1720908639092,-500.0,0.00024657,2]
[331967651,1720908639102,-500.0,0.00024657,2]
[331967652,1720908639111,-500.0,0.00024657,2]
[331967653,1720908639120,-500.0,0.00024657,2]
[331967654,1720908639130,-502.68106688,0.00024657,2]
[331967655,1720908639139,-501.87432441,0.00024657,2]
[331967656,1720908639149,-500.0,0.00024657,2]
[331967657,1720908639158,-506.86817705,0.00024657,2]
[331967658,1720908639167,-500.0,0.00024657,2]
[331967659,1720908639177,-552.00324419,0.00024657,2]
[331967660,1720908639186,-500.0,0.00024657,2]
[331967661,1720908639195,-500.0,0.00024657,2]
[331967662,1720908639205,-500.0,0.00024657,2]
[331967663,1720908639214,-500.0,0.00024657,2]
[331967664,1720908639223,-500.0,0.00024657,2]
[331967665,1720908639233,-500.0,0.00024657,2]
[331967666,1720908639242,-500.0,0.00024657,2]
[331967667,1720908639252,-500.0,0.00024657,2]
[331967668,1720908639262,-524.21912007,0.00024657,2]
[331967669,1720908639271,-500.0,0.00024657,2]
[331967670,1720908639281,-500.0,0.00024657,2]
[331967671,1720908639290,-500.0,0.00024657,2]
[331967672,1720908639300,-500.0,0.00024657,2]
[331967673,1720908639309,-500.0,0.00024657,2]
[331967674,1720908639318,-500.0,0.00024657,2]
[331967675,1720908639328,-500.0,0.00024657,2]
[331967676,1720908639338,-500.0,0.00024657,2]
[331967677,1720908639348,-500.0,0.00024657,2]
[331967678,1720908639357,-553.31,0.00024657,2]
[331967679,1720908639367,-500.0,0.00024657,2]
[331967681,1720908639377,-500.0,0.00024657,2]
[331967682,1720908639387,-503.45661222,0.00024657,2]
[331967683,1720908639397,-499.99972297,0.00024657,2]
[331967684,1720908639407,-501.26108905,0.00024657,2]
[331967685,1720908639417,-500.0,0.00024657,2]
[331967686,1720908639427,-500.0,0.00024657,2]
[331967687,1720908639436,-500.0,0.00024657,2]
[331967688,1720908639446,-500.0,0.00024657,2]
[331967689,1720908639456,-827.48,0.00024657,2]
[331967690,1720908639466,-500.0,0.00024657,2]
[331967691,1720908639475,-500.0,0.00024657,2]
[331967692,1720908639485,-500.0,0.00024657,2]
[331967693,1720908639496,-500.0,0.00024657,2]
[331967694,1720908639506,-500.0,0.00024657,2]
[331967695,1720908639517,-500.0,0.00024657,2]
[331967696,1720908639526,-514.76384233,0.00024657,2]
[331967697,1720908639619,-500.0,0.00024657,2]
[331967698,1720908639630,-500.0,0.00024657,2]
[331967699,1720908639644,-500.0,0.00024657,2]
[331967700,1720908639654,-500.0,0.00024657,2]
[331967701,1720908639664,-409.24956619,0.00024657,2]
[331967702,1720908639674,-500.0,0.00024657,2]
[331967703,1720908639685,-506.75700997,0.00024657,2]
[331967704,1720908639695,-500.0,0.00024657,2]
[331967705,1720908639706,-500.76005384,0.00024657,2]
[331967706,1720908639717,-500.0,0.00024657,2]
[331967707,1720908639729,-500.0,0.00024657,2]
[331967708,1720908639739,-168.80151027,0.00024657,2]
[331967710,1720908639751,-500.0,0.00024657,2]
[331967712,1720908639761,-500.0,0.00024657,2]
[331967714,1720908639771,-500.0,0.00024657,2]
[331967716,1720908639779,-500.0,0.00024657,2]
[331967718,1720908639789,-500.0,0.00024657,2]
[331967720,1720908639799,-520.84573661,0.00024657,2]
[331967722,1720908639810,-500.0,0.00024657,2]
[331967724,1720908639819,-500.0,0.00024657,2]
[331967726,1720908639829,-500.0,0.00024657,2]
[331967728,1720908639840,-500.0,0.00024657,2]
[331967730,1720908639851,-500.0,0.00024657,2]
[331967732,1720908639861,-500.0,0.00024657,2]
[331967734,1720908639871,-500.0,0.00024657,2]
[331967736,1720908639882,-500.0,0.00024657,2]
[331967738,1720908639893,-500.0,0.00024657,2]
[331967740,1720908639903,-500.0,0.00024657,2]
[331967742,1720908639912,-500.0,0.00024657,2]
[331967745,1720908639923,-500.0,0.00024657,2]
[331967747,1720908639933,-500.0,0.00024657,2]
[331967749,1720908639942,-500.0,0.00024657,2]
[331967751,1720908639952,-500.0,0.00024657,2]
[331967753,1720908639961,-500.0,0.00024657,2]
[331967755,1720908639971,-500.0,0.00024657,2]
[331967757,1720908639980,-500.0,0.00024657,2]
[331967759,1720908639990,-1500.0,0.00024657,2]
[331967761,1720908640001,-500.59434519,0.00024657,2]
[331967763,1720908640011,-500.0,0.00024657,2]
[331967765,1720908640020,-500.0,0.00024657,2]
[331967766,1720908640030,-500.0,0.00024657,2]
[331967767,1720908640040,-502.66408238,0.00024657,2]
[331967769,1720908640050,-500.0,0.00024657,2]
[331967770,1720908640060,-500.0,0.00024657,2]
[331967771,1720908640069,-500.0,0.00024657,2]
[331967772,1720908640079,-365.0713794,0.00024657,2]
[331967774,1720908640089,-500.0,0.00024657,2]
[331967776,1720908640098,-500.0,0.00024657,2]
[331967778,1720908640108,-500.0,0.00024657,2]
[331967780,1720908640119,-500.0,0.00024657,2]
[331967782,1720908640128,-500.0,0.00024657,2]
[331967784,1720908640139,-500.0,0.00024657,2]
[331967786,1720908640149,-500.0,0.00024657,2]
[331967788,1720908640159,-500.0,0.00024657,2]
[331967790,1720908640169,-500.0,0.00024657,2]
[331967791,1720908640178,-500.0,0.00024657,2]
[331967792,1720908640188,-500.0,0.00024657,2]
[331967794,1720908640198,-554.98157626,0.00024657,2]
[331967796,1720908640207,-500.0,0.00024657,2]
[331967798,1720908640217,-500.0,0.00024657,2]
[331967799,1720908640227,-500.0,0.00024657,2]
[331967801,1720908640236,-500.0,0.00024657,2]
[331967802,1720908640245,-500.0,0.00024657,2]
[331967803,1720908640255,-500.0,0.00024657,2]
[331967804,1720908640265,-530.48525188,0.00024657,2]
[331967805,1720908640278,-500.0,0.00024657,2]
[331967806,1720908640289,-500.0,0.00024657,2]
[331967807,1720908640299,-500.0,0.00024657,2]
[331967808,1720908640310,-500.0,0.00024657,2]
[331967809,1720908640320,-340.28306056,0.00024657,2]
[331967810,1720908640333,-500.0,0.00024657,2]
[331967811,1720908640343,-500.0,0.00024657,2]
[331967812,1720908640354,-500.0,0.00024657,2]
[331967813,1720908640363,-500.0,0.00024657,2]
[331967814,1720908640373,-500.0,0.00024657,2]
[331967815,1720908640383,-500.0,0.00024657,2]
[331967816,1720908640392,-500.0,0.00024657,2]
[331967817,1720908640402,-500.0,0.00024657,2]
[331967818,1720908640412,-500.0,0.00024657,2]
[331967819,1720908640422,-500.0,0.00024657,2]
[331967820,1720908640432,-500.0,0.00024657,2]
[331967821,1720908640441,-500.0,0.00024657,2]
[331967822,1720908640451,-500.0,0.00024657,2]
[331967823,1720908640460,-500.0,0.00024657,2]
[331967824,1720908640470,-500.0,0.00024657,2]
[331967825,1720908640479,-500.0,0.00024657,2]
[331967826,1720908640489,-500.0,0.00024657,2]
[331967827,1720908640503,-500.0,0.00024657,2]
[331967828,1720908640514,-500.0,0.00024657,2]
[331967829,1720908640523,-500.0,0.00024657,2]
[331967830,1720908640532,-500.0,0.00024657,2]
[331967831,1720908640543,-500.0,0.00024657,2]
[331967832,1720908640552,-500.0,0.00024657,2]
[331967833,1720908640562,-500.0,0.00024657,2]
[331967834,1720908640572,-500.0,0.00024657,2]
[331967835,1720908640581,-476.06199456,0.00024657,2]
[331967836,1720908640592,-500.0,0.00024657,2]
[331967837,1720908640613,-500.0,0.00024657,2]
[331967838,1720908640624,-500.0,0.00024657,2]
[331967839,1720908640638,-500.0,0.00024657,2]
[331967840,1720908640649,-500.0,0.00024657,2]
[331967841,1720908640661,-500.0,0.00024657,2]
[331967842,1720908640671,-500.0,0.00024657,2]
[331967843,1720908640683,-500.0,0.00024657,2]
[331967844,1720908640693,-500.0,0.00024657,2]
[331967845,1720908640704,-500.0,0.00024657,2]
[331967846,1720908640717,-500.0,0.00024657,2]
[331967847,1720908640728,-2267.85,0.00024657,2]
[331967848,1720908640738,-500.0,0.00024657,2]
[331967849,1720908640748,-500.0,0.00024657,2]
[331967850,1720908640759,-1000.0,0.00024657,5]
[331967851,1720908640769,-500.0,0.00024657,2]
[331967852,1720908640779,-500.0,0.00024657,2]
[331967853,1720908640789,-500.0,0.00024657,2]
[331967854,1720908640799,-500.0,0.00024657,2]
[331967855,1720908640809,-200.0,0.00024657,2]
[331967856,1720908640819,-500.0,0.00024657,2]
[331967857,1720908640830,-500.0,0.00024657,2]
[331967858,1720908640840,-507.18807949,0.00024657,2]
[331967859,1720908640850,-500.0,0.00024657,2]
[331967860,1720908640859,-500.0,0.00024657,2]
[331967861,1720908640869,-500.0,0.00024657,2]
[331967862,1720908640879,-500.0,0.00024657,2]
[331967863,1720908640888,-500.0,0.00024657,2]
[331967864,1720908640898,-500.0,0.00024657,2]
[331967865,1720908640908,-500.0,0.00024657,2]
[331967866,1720908640919,-546.76823549,0.00024657,2]
[331967867,1720908640929,-500.0,0.00024657,2]
[331967868,1720908640939,-500.0,0.00024657,2]
[331967869,1720908640949,-500.0,0.00024657,2]
[331967870,1720908640959,-500.0,0.00024657,2]
[331967871,1720908640970,-500.0,0.00024657,2]
[331967872,1720908640980,-500.0,0.00024657,2]
[331967873,1720908640990,-500.0,0.00024657,2]
[331967874,1720908641001,-500.0,0.00024657,2]
[331967875,1720908641011,-500.0,0.00024657,2]
[331967876,1720908641021,-500.0,0.00024657,2]
[331967877,1720908641031,-500.0,0.00024657,2]
[331967878,1720908641042,-500.0,0.00024657,2]
[331967879,1720908641052,-500.0,0.00024657,2]
[331967880,1720908641062,-500.0,0.00024657,2]
[331967881,1720908641072,-517.89302532,0.00024657,2]
[331967882,1720908641082,-500.0,0.00024657,2]
[331967883,1720908641092,-500.0,0.00024657,2]
[331967884,1720908641103,-500.0,0.00024657,2]
[331967885,1720908641114,-500.0,0.00024657,2]
[331967886,1720908641124,-500.0,0.00024657,2]
[331967887,1720908641134,-500.0,0.00024657,2]
[331967888,1720908641145,-500.0,0.00024657,2]
[331967889,1720908641154,-502.05511582,0.00024657,2]
[331967890,1720908641164,-534.26869041,0.00024657,2]
[331967891,1720908641174,-500.0,0.00024657,2]
[331967892,1720908641183,-500.0,0.00024657,2]
[331967893,1720908641193,-500.0,0.00024657,2]
[331967894,1720908641203,-500.0,0.00024657,2]
[331967895,1720908641213,-500.0,0.00024657,2]
[331967896,1720908641223,-500.0,0.00024657,2]
[331967897,1720908641233,-500.0,0.00024657,2]
[331967898,1720908641243,-500.0,0.00024657,2]
[331967899,1720908641253,-500.0,0.00024657,2]
[331967900,1720908641263,-587.82,0.00024657,2]
[331967901,1720908641274,-500.0,0.00024657,2]
[331967902,1720908641285,-500.0,0.00024657,2]
[331967903,1720908641295,-500.0,0.00024657,2]
[331967904,1720908641304,-500.0,0.00024657,2]
[331967906,1720908641314,-500.0,0.00024657,2]
[331967907,1720908641323,-500.0,0.00024657,2]
[331967908,1720908641333,-500.0,0.00024657,2]
[331967909,1720908641343,-500.0,0.00024657,2]
[331967910,1720908641353,-500.25988635,0.00024657,2]
[331967911,1720908641363,-500.0,0.00024657,2]
[331967912,1720908641372,-500.0,0.00024657,2]
[331967913,1720908641383,-553.13508304,0.00024657,2]
[331967914,1720908641393,-501.11844022,0.00024657,2]
[331967915,1720908641403,-500.0,0.00024657,2]
[331967916,1720908641413,-500.0,0.00024657,2]
[331967917,1720908641424,-503.81660779,0.00024657,2]
[331967918,1720908641434,-500.0,0.00024657,2]
[331967919,1720908641447,-500.0,0.00024657,2]
[331967920,1720908641457,-500.0,0.00024657,2]
[331967921,1720908641467,-200.0,0.00024657,7]
[331967922,1720908641477,-500.0,0.00024657,2]
[331967923,1720908641487,-500.0,0.00024657,2]
[331967924,1720908641497,-500.0,0.00024657,2]
[331967925,1720908641507,-500.0,0.00024657,2]
[331967926,1720908641518,-500.0,0.00024657,2]
[331967927,1720908641528,-500.0,0.00024657,2]
[331967928,1720908641538,-500.0,0.00024657,2]
[331967929,1720908641548,-500.0,0.00024657,2]
[331967930,1720908641558,-500.0,0.00024657,2]
[331967931,1720908641568,-500.0,0.00024657,2]
[331967932,1720908641578,-649.33706745,0.00024657,2]
[331967933,1720908641588,-500.0,0.00024657,2]
[331967934,1720908641599,-500.0,0.00024657,2]
[331967935,1720908641706,-593.98441545,0.00024657,2]
[331967936,1720908641716,-518.23035711,0.00024657,2]
[331967937,1720908641731,-500.0,0.00024657,2]
[331967938,1720908641743,-500.0,0.00024657,2]
[331967939,1720908641756,-199.52435898,0.00024657,2]
[331967940,1720908641767,-500.0,0.00024657,2]
[331967941,1720908641777,-500.0,0.00024657,2]
[331967942,1720908641787,-311.42736687,0.00024657,2]
[331967943,1720908641796,-500.0,0.00024657,2]
[331967944,1720908641806,-500.0,0.00024657,2]
[331967945,1720908641817,-500.0,0.00024657,2]
[331967946,1720908641827,-500.0,0.00024657,2]
[331967947,1720908641837,-500.0,0.00024657,2]
[331967948,1720908641846,-186.46481003,0.00024657,2]
[331967949,1720908641856,-500.0,0.00024657,2]
[331967950,1720908641866,-500.0,0.00024657,2]
[331967951,1720908641875,-500.0,0.00024657,2]
[331967952,1720908641885,-500.0,0.00024657,2]
[331967953,1720908641894,-500.0,0.00024657,2]
[331967954,1720908641903,-500.0,0.00024657,2]
[331967955,1720908641912,-500.0,0.00024657,2]
[331967956,1720908641923,-500.0,0.00024657,2]
[331967957,1720908641933,-500.0,0.00024657,2]
[331967958,1720908641943,-500.0,0.00024657,2]
[331967959,1720908641953,-500.0,0.00024657,2]
[331967960,1720908641963,-500.0,0.00024657,2]
[331967961,1720908641973,-500.0,0.00024657,2]
[331967962,1720908641983,-500.0,0.00024657,2]
[331967963,1720908641992,-500.0,0.00024657,2]
[331967964,1720908642004,-502.80139292,0.00024657,2]
[331967965,1720908642013,-500.0,0.00024657,2]
[331967966,1720908642025,-500.0,0.00024657,2]
[331967967,1720908642034,-997.01,0.00024657,2]
[331967968,1720908642044,-500.0,0.00024657,2]
[331967969,1720908642055,-500.0,0.00024657,2]
[331967970,1720908642065,-500.0,0.00024657,2]
[331967971,1720908642074,-500.0,0.00024657,2]
[331967972,1720908642084,-500.0,0.00024657,2]
[331967973,1720908642094,-500.0,0.00024657,2]
[331967974,1720908642104,-500.0,0.00024657,2]
[331967975,1720908642114,-500.0,0.00024657,2]
[331967976,1720908642124,-501.13533094,0.00024657,2]
[331967977,1720908642134,-371.21090127,0.00024657,2]
[331967978,1720908642144,-500.0,0.00024657,2]
[331967979,1720908642153,-500.0,0.00024657,2]
[331967980,1720908642163,-500.0,0.00024657,2]
[331967981,1720908642172,-500.0,0.00024657,2]
[331967982,1720908642182,-365.49568131,0.00024657,2]
[331967983,1720908642192,-500.0,0.00024657,2]
[331967984,1720908642203,-500.0,0.00024657,2]
[331967985,1720908642214,-500.0,0.00024657,2]
[331967986,1720908642224,-500.0,0.00024657,2]
[331967987,1720908642234,-500.0,0.00024657,2]
[331967988,1720908642245,-500.0,0.00024657,2]
[331967989,1720908642254,-500.0,0.00024657,2]
[331967990,1720908642265,-500.0,0.00024657,2]
[331967991,1720908642275,-500.0,0.00024657,2]
[331967992,1720908642286,-500.0,0.00024657,2]
[331967993,1720908642296,-500.0,0.00024657,2]
[331967994,1720908642307,-500.0,0.00024657,2]
[331967995,1720908642317,-500.0,0.00024657,2]
[331967996,1720908642328,-210.53958905,0.00024657,2]
[331967997,1720908642338,-500.0,0.00024657,2]
[331967998,1720908642348,-500.0,0.00024657,2]
[331967999,1720908642358,-500.0,0.00024657,2]
[331968000,1720908642368,-500.0,0.00024657,2]
[331968001,1720908642378,-500.0,0.00024657,2]
[331968002,1720908642387,-500.0,0.00024657,2]
[331968003,1720908642397,-500.0,0.00024657,2]
[331968004,1720908642407,-500.0,0.00024657,2]
[331968005,1720908642416,-500.0,0.00024657,2]
[331968006,1720908642426,-500.0,0.00024657,2]
[331968007,1720908642435,-500.0,0.00024657,2]